[Event "Mistrovství Čech mládeže 2023 - HD14"]
[Site "Harrachov, Czech Republic"]
[Date "2023.10.21"]
[Round "1.1"]
[White "Váňa, Jan"]
[Black "Borecký, Andrej"]
[Result "1-0"]
[TimeControl "90m + 30s"]
[WhiteElo "1969"]
[BlackElo "1341"]

1. e4 {[%clk 01:30:58]} {[%emt 00:00:01]} c5 {[%clk 01:28:21]} {[%emt
00:02:40]} 2. Nf3 {[%clk 01:31:23]} {[%emt 00:00:05]} Nc6 {[%clk 01:28:45]}
{[%emt 00:00:06]} 3. Bb5 {[%clk 01:31:48]} {[%emt 00:00:05]} g6 {[%clk
01:28:24]} {[%emt 00:00:51]} 4. O-O {[%clk 01:32:10]} {[%emt 00:00:07]} Bg7
{[%clk 01:28:16]} {[%emt 00:00:39]} 5. Re1 {[%clk 01:32:34]} {[%emt 00:00:05]}
d6 {[%clk 01:27:25]} {[%emt 00:01:22]} 6. c3 {[%clk 01:32:25]} {[%emt
00:00:38]} Bg4 {[%clk 01:26:38]} {[%emt 00:01:18]} 7. h3 {[%clk 01:30:28]}
{[%emt 00:02:26]} Bxf3 {[%clk 01:25:55]} {[%emt 00:01:14]} 8. Qxf3 {[%clk
01:29:22]} {[%emt 00:01:36]} Qc7 {[%clk 01:19:39]} {[%emt 00:06:46]} 9. d3
{[%clk 01:27:31]} {[%emt 00:02:20]} a6 {[%clk 01:18:24]} {[%emt 00:01:46]} 10.
Bxc6+ {[%clk 01:27:22]} {[%emt 00:00:39]} Qxc6 {[%clk 01:18:27]} {[%emt
00:00:27]} 11. Nd2 {[%clk 01:18:29]} {[%emt 00:09:22]} Nf6 {[%clk 01:15:49]}
{[%emt 00:03:09]} 12. a4 {[%clk 01:09:52]} {[%emt 00:09:07]} O-O {[%clk
01:11:03]} {[%emt 00:05:15]} 13. a5 {[%clk 01:04:04]} {[%emt 00:06:17]} Nd7
{[%clk 01:01:48]} {[%emt 00:09:45]} 14. Qe2 {[%clk 00:59:54]} {[%emt 00:04:40]}
e6 {[%clk 00:54:26]} {[%emt 00:07:53]} 15. f4 {[%clk 00:57:35]} {[%emt
00:02:48]} Rae8 {[%clk 00:49:23]} {[%emt 00:05:33]} 16. Nf3 {[%clk 00:51:12]}
{[%emt 00:06:53]} f5 {[%clk 00:44:40]} {[%emt 00:05:14]} 17. e5 {[%clk
00:46:04]} {[%emt 00:05:37]} dxe5 {[%clk 00:43:21]} {[%emt 00:01:50]} 18. fxe5
{[%clk 00:45:31]} {[%emt 00:01:03]} Qc7 {[%clk 00:34:01]} {[%emt 00:09:51]} 19.
Bf4 {[%clk 00:41:29]} {[%emt 00:04:31]} h6 {[%clk 00:33:30]} {[%emt 00:01:01]}
20. h4 {[%clk 00:28:52]} {[%emt 00:13:07]} Nb8 {[%clk 00:25:19]} {[%emt
00:08:42]} 21. Nd2 {[%clk 00:28:52]} {[%emt 00:00:29]} Nc6 {[%clk 00:23:56]}
{[%emt 00:01:53]} 22. Qe3 {[%clk 00:23:04]} {[%emt 00:06:17]} Ne7 {[%clk
00:20:07]} {[%emt 00:04:19]} 23. Nc4 {[%clk 00:12:02]} {[%emt 00:11:31]} Nd5
{[%clk 00:19:13]} {[%emt 00:01:24]} 24. Qd2 {[%clk 00:11:08]} {[%emt 00:01:24]}
Nxf4 {[%clk 00:17:13]} {[%emt 00:02:31]} 25. Qxf4 {[%clk 00:11:32]} {[%emt
00:00:06]} Qe7 {[%clk 00:16:45]} {[%emt 00:00:59]} 26. Nd6 {[%clk 00:09:10]}
{[%emt 00:02:52]} Rd8 {[%clk 00:16:31]} {[%emt 00:00:44]} 27. d4 {[%clk
00:07:27]} {[%emt 00:02:13]} cxd4 {[%clk 00:16:01]} {[%emt 00:01:00]} 28. cxd4
{[%clk 00:07:24]} {[%emt 00:00:33]} g5 {[%clk 00:15:18]} {[%emt 00:01:13]} 29.
hxg5 {[%clk 00:07:47]} {[%emt 00:00:07]} hxg5 {[%clk 00:15:39]} {[%emt
00:00:09]} 30. Qf2 {[%clk 00:06:18]} {[%emt 00:01:58]} g4 {[%clk 00:12:36]}
{[%emt 00:03:33]} 31. g3 {[%clk 00:02:36]} {[%emt 00:04:12]} Bh6 {[%clk
00:11:03]} {[%emt 00:02:02]} 32. d5 {[%clk 00:00:45]} {[%emt 00:02:21]} f4
{[%clk 00:09:03]} {[%emt 00:02:31]} 33. Ra4 {[%clk 00:00:50]} {[%emt 00:00:25]}
Qd7 {[%clk 00:08:04]} {[%emt 00:01:29]} 34. Rb4 {[%clk 00:00:34]} {[%emt
00:00:46]} exd5 {[%clk 00:07:58]} {[%emt 00:00:36]} 35. gxf4 {[%clk 00:00:37]}
{[%emt 00:00:26]} Qc6 {[%clk 00:04:53]} {[%emt 00:03:35]} 36. Qe3 {[%clk
00:00:32]} {[%emt 00:00:35]} d4 {[%clk 00:02:56]} {[%emt 00:02:27]} 37. Rxd4
{[%clk 00:00:34]} {[%emt 00:00:28]} Rd7 {[%clk 00:00:58]} {[%emt 00:02:28]} 38.
Qe4 {[%clk 00:00:34]} {[%emt 00:00:30]} Qc7 {[%clk 00:00:52]} {[%emt 00:00:36]}
39. Qd5+ {[%clk 00:00:35]} {[%emt 00:00:29]} Kh8 {[%clk 00:01:00]} {[%emt
00:00:22]} 40. e6 {[%clk 00:00:33]} {[%emt 00:00:31]} Re7 {[%clk 00:01:02]}
{[%emt 00:00:28]} 41. Nf5 {[%clk 00:00:40]} {[%emt 00:00:23]} Bxf4 {[%clk
00:00:38]} {[%emt 00:00:54]} 42. Nxe7 {[%clk 00:00:34]} {[%emt 00:00:36]} Bh2+
{[%clk 00:00:38]} {[%emt 00:00:31]} 43. Kh1 {[%clk 00:00:55]} {[%emt 00:00:09]}
Qxe7 {[%clk 00:00:38]} {[%emt 00:00:30]} 44. Qh5+ {[%clk 00:01:05]} {[%emt
00:00:19]} Qh7 {[%clk 00:00:38]} {[%emt 00:00:31]} 45. Qxh7+ {[%clk 00:00:59]}
{[%emt 00:00:35]} Kxh7 {[%clk 00:01:01]} {[%emt 00:00:08]} 46. e7 {[%clk
00:00:53]} {[%emt 00:00:35]} 1-0

[Event "Mistrovství Čech mládeže 2023 - HD14"]
[Site "Harrachov, Czech Republic"]
[Date "2023.10.21"]
[Round "1.2"]
[White "Ausperger, Vít"]
[Black "Roubal, Matyáš"]
[Result "0-1"]
[TimeControl "90m + 30s"]
[WhiteElo "1302"]
[BlackElo "1884"]

1. d4 {[%clk 01:30:58]} {[%emt 00:00:02]} Nf6 {[%clk 01:30:54]} {[%emt
00:00:06]} 2. c4 {[%clk 01:31:17]} {[%emt 00:00:11]} g6 {[%clk 01:31:21]}
{[%emt 00:00:03]} 3. Nc3 {[%clk 01:31:36]} {[%emt 00:00:11]} Bg7 {[%clk
01:31:47]} {[%emt 00:00:04]} 4. e4 {[%clk 01:31:46]} {[%emt 00:00:19]} d6
{[%clk 01:32:11]} {[%emt 00:00:06]} 5. Bf4 {[%clk 01:31:51]} {[%emt 00:00:25]}
O-O {[%clk 01:32:20]} {[%emt 00:00:21]} 6. Nf3 {[%clk 01:30:52]} {[%emt
00:01:30]} c5 {[%clk 01:24:35]} {[%emt 00:08:16]} 7. dxc5 {[%clk 01:23:21]}
{[%emt 00:08:00]} dxc5 {[%clk 01:23:43]} {[%emt 00:01:21]} 8. Qc2 {[%clk
01:16:26]} {[%emt 00:07:26]} Nc6 {[%clk 01:20:56]} {[%emt 00:03:16]} 9. Rd1
{[%clk 01:09:10]} {[%emt 00:07:47]} Nd4 {[%clk 01:19:59]} {[%emt 00:01:27]} 10.
Nxd4 {[%clk 01:06:21]} {[%emt 00:03:18]} cxd4 {[%clk 01:20:25]} {[%emt
00:00:05]} 11. Be5 {[%clk 01:02:08]} {[%emt 00:04:43]} Ng4 {[%clk 00:53:35]}
{[%emt 00:27:19]} 12. Rxd4 {[%clk 01:00:25]} {[%emt 00:02:13]} Qb6 {[%clk
00:51:40]} {[%emt 00:02:26]} 13. Bxg7 {[%clk 00:59:25]} {[%emt 00:01:29]} Kxg7
{[%clk 00:52:08]} {[%emt 00:00:02]} 14. Rd2 {[%clk 00:58:25]} {[%emt 00:01:30]}
Be6 {[%clk 00:47:46]} {[%emt 00:04:52]} 15. h3 {[%clk 00:45:55]} {[%emt
00:12:59]} Ne5 {[%clk 00:47:05]} {[%emt 00:01:11]} 16. Nd5 {[%clk 00:40:56]}
{[%emt 00:05:29]} Bxd5 {[%clk 00:45:42]} {[%emt 00:01:54]} 17. Rxd5 {[%clk
00:33:24]} {[%emt 00:08:01]} Nc6 {[%clk 00:45:14]} {[%emt 00:00:59]} 18. Qc3+
{[%clk 00:32:34]} {[%emt 00:01:19]} e5 {[%clk 00:45:30]} {[%emt 00:00:14]} 19.
c5 {[%clk 00:29:16]} {[%emt 00:03:48]} Qc7 {[%clk 00:44:33]} {[%emt 00:01:27]}
20. Bc4 {[%clk 00:21:22]} {[%emt 00:08:24]} Nd4 {[%clk 00:41:12]} {[%emt
00:03:51]} 21. O-O {[%clk 00:16:27]} {[%emt 00:05:22]} Rfd8 {[%clk 00:40:08]}
{[%emt 00:01:37]} 22. Re1 {[%clk 00:14:21]} {[%emt 00:02:36]} f6 {[%clk
00:39:39]} {[%emt 00:01:00]} 23. Kf1 {[%clk 00:14:33]} {[%emt 00:00:17]} a5
{[%clk 00:36:38]} {[%emt 00:03:31]} 24. a4 {[%clk 00:11:25]} {[%emt 00:03:38]}
Rxd5 {[%clk 00:33:34]} {[%emt 00:03:34]} 25. Bxd5 {[%clk 00:10:59]} {[%emt
00:00:55]} Qd7 {[%clk 00:30:59]} {[%emt 00:03:05]} 26. b3 {[%clk 00:08:14]}
{[%emt 00:03:15]} f5 {[%clk 00:31:03]} {[%emt 00:00:26]} 27. Rc1 {[%clk
00:06:01]} {[%emt 00:02:43]} Ra6 {[%clk 00:27:37]} {[%emt 00:03:56]} 28. f4
{[%clk 00:04:45]} {[%emt 00:01:46]} fxe4 {[%clk 00:27:45]} {[%emt 00:00:22]} 29.
Bxe4 {[%clk 00:03:50]} {[%emt 00:01:25]} Rf6 {[%clk 00:26:47]} {[%emt
00:01:28]} 30. Rd1 {[%clk 00:00:46]} {[%emt 00:03:33]} Rxf4+ {[%clk 00:26:00]}
{[%emt 00:01:18]} 31. Bf3 {[%clk 00:00:57]} {[%emt 00:00:19]} Qf7 {[%clk
00:20:33]} {[%emt 00:05:57]} 32. Kf2 {[%clk 00:00:36]} {[%emt 00:00:51]} Qe7 33.
Qd3 {[%clk 00:00:36]} 0-1

[Event "Mistrovství Čech mládeže 2023 - HD14"]
[Site "Harrachov, Czech Republic"]
[Date "2023.10.21"]
[Round "1.3"]
[White "Migalko, Dmitriy"]
[Black "Ugrenovich, Jaroslav"]
[Result "1-0"]
[TimeControl "90m + 30s"]
[WhiteElo "1842"]
[BlackElo "1277"]

1. c4 {[%clk 01:30:54]} {[%emt 00:00:05]} e6 {[%clk 01:30:53]} {[%emt
00:00:07]} 2. e4 {[%clk 01:31:06]} {[%emt 00:00:18]} Nc6 {[%clk 01:29:48]}
{[%emt 00:01:36]} 3. d4 {[%clk 01:29:51]} {[%emt 00:01:44]} d5 {[%clk
01:29:54]} {[%emt 00:00:23]} 4. exd5 {[%clk 01:29:26]} {[%emt 00:00:56]} exd5
{[%clk 01:30:10]} {[%emt 00:00:13]} 5. Nc3 {[%clk 01:28:05]} {[%emt 00:01:50]}
Bb4 {[%clk 01:27:25]} {[%emt 00:03:16]} 6. Nf3 {[%clk 01:26:50]} {[%emt
00:01:44]} Nge7 {[%clk 01:27:24]} {[%emt 00:00:31]} 7. Bd3 {[%clk 01:25:00]}
{[%emt 00:02:21]} Bg4 {[%clk 01:27:31]} {[%emt 00:00:23]} 8. Be3 {[%clk
01:23:49]} {[%emt 00:01:40]} O-O {[%clk 01:19:34]} {[%emt 00:08:28]} 9. Bxh7+
{[%clk 01:20:08]} {[%emt 00:04:12]} Kxh7 {[%clk 01:15:20]} {[%emt 00:04:43]} 10.
Ng5+ {[%clk 01:19:30]} {[%emt 00:01:08]} Kg8 {[%clk 01:15:43]} {[%emt
00:00:07]} 11. Qxg4 {[%clk 01:19:45]} {[%emt 00:00:15]} Re8 {[%clk 01:16:04]}
{[%emt 00:00:09]} 12. O-O {[%clk 01:17:53]} {[%emt 00:02:22]} Bxc3 {[%clk
01:15:15]} {[%emt 00:01:19]} 13. bxc3 {[%clk 01:17:04]} {[%emt 00:01:20]} dxc4
{[%clk 01:15:36]} 14. Rab1 {[%clk 01:16:05]} {[%emt 00:01:37]} Rb8 {[%clk
01:15:19]} 15. Qh5 {[%clk 01:11:39]} {[%emt 00:05:42]} Qd5 {[%clk 01:11:07]} 16.
Qh7+ {[%emt 00:07:21]} Kf8 17. Qh8+ Ng8 18. Nh7+ Ke7 19. Qxg7 Nd8 20. Bg5+ Kd7
21. Bxd8 Kxd8 22. Rfe1 Kd7 23. Rxe8 {[%clk 01:09:29]} Rxe8 {[%clk 01:11:29]} 24.
Nf8+ {[%emt 00:36:07]} Kd8 25. Qxg8 Qe4 26. Rf1 Qe7 27. h4 Rxf8 28. Qg5 Qxg5 29.
hxg5 c6 30. Re1 b5 31. f4 Re8 32. Rxe8+ Kxe8 33. Kf2 Ke7 34. f5 {[%clk
00:56:34]} a5 {[%clk 00:51:35]} 35. a3 {[%clk 00:34:55]} {[%emt 00:39:56]} Kd6
{[%clk 00:47:39]} 36. Ke3 {[%clk 00:34:39]} {[%emt 00:02:17]} Ke7 {[%clk
00:47:43]} 37. a4 {[%clk 00:34:05]} {[%emt 00:01:30]} Kd7 {[%clk 00:43:23]} 38.
axb5 {[%clk 00:34:22]} {[%emt 00:05:03]} cxb5 {[%clk 00:43:41]} 39. g6 {[%clk
00:34:17]} {[%emt 00:00:47]} fxg6 {[%clk 00:43:47]} 40. fxg6 {[%clk 00:34:43]}
{[%emt 00:00:27]} Ke8 {[%clk 00:43:57]} 41. d5 {[%clk 00:35:07]} {[%emt
00:00:26]} a4 {[%clk 00:43:55]} 42. Kd2 {[%clk 00:35:21]} {[%emt 00:00:48]} a3
{[%clk 00:43:08]} 43. Kc2 {[%clk 00:35:31]} {[%emt 00:01:37]} b4 {[%clk
00:41:27]} 44. cxb4 {[%clk 00:35:41]} {[%emt 00:02:31]} a2 {[%clk 00:41:29]} 45.
Kb2 {[%clk 00:36:07]} {[%emt 00:00:32]} c3+ {[%clk 00:41:48]} {[%emt 00:00:10]}
46. Kxa2 {[%emt 00:00:16]} 1-0

[Event "Mistrovství Čech mládeže 2023 - HD14"]
[Site "Harrachov, Czech Republic"]
[Date "2023.10.21"]
[Round "1.4"]
[White "Mojžíšová, Barbora"]
[Black "Topenčík, Bruno"]
[Result "1/2-1/2"]
[TimeControl "90m + 30s"]
[WhiteElo "1242"]
[BlackElo "1832"]

1. e4 {[%clk 01:30:56]} {[%emt 00:00:03]} c6 {[%clk 01:30:56]} {[%emt
00:00:04]} 2. d4 {[%clk 01:31:18]} {[%emt 00:00:08]} d5 {[%clk 01:31:21]}
{[%emt 00:00:04]} 3. Nc3 {[%clk 01:31:21]} {[%emt 00:00:28]} dxe4 {[%clk
01:31:21]} {[%emt 00:00:30]} 4. Nxe4 {[%clk 01:31:40]} {[%emt 00:00:11]} Bf5
{[%clk 01:30:55]} {[%emt 00:00:56]} 5. Ng3 {[%clk 01:31:00]} {[%emt 00:01:08]}
Bg6 {[%clk 01:31:18]} {[%emt 00:00:08]} 6. Nf3 {[%clk 01:30:15]} {[%emt
00:01:15]} Nf6 {[%clk 01:28:58]} {[%emt 00:02:50]} 7. Bc4 {[%clk 01:28:55]}
{[%emt 00:01:48]} e6 {[%clk 01:28:32]} {[%emt 00:00:59]} 8. Bg5 {[%clk
01:28:13]} {[%emt 00:01:05]} Nbd7 {[%clk 01:28:02]} {[%emt 00:01:07]} 9. O-O
{[%clk 01:27:08]} {[%emt 00:01:35]} Be7 {[%clk 01:27:52]} {[%emt 00:00:39]} 10.
Re1 {[%clk 01:22:42]} {[%emt 00:04:56]} O-O {[%clk 01:26:57]} {[%emt 00:01:25]}
11. Bd3 {[%clk 01:20:31]} {[%emt 00:02:40]} Bxd3 {[%clk 01:22:29]} {[%emt
00:05:00]} 12. Qxd3 {[%clk 01:18:58]} {[%emt 00:02:03]} Qb6 {[%clk 01:21:02]}
{[%emt 00:01:57]} 13. b3 {[%clk 01:15:44]} {[%emt 00:03:43]} Rad8 {[%clk
01:18:12]} {[%emt 00:03:20]} 14. Be3 {[%clk 01:11:00]} {[%emt 00:05:12]} Nd5
{[%clk 01:15:49]} {[%emt 00:02:56]} 15. Ng5 {[%clk 01:09:15]} {[%emt 00:02:13]}
N7f6 {[%clk 01:13:33]} {[%emt 00:02:47]} 16. Nh5 {[%clk 01:04:56]} {[%emt
00:04:43]} h6 {[%clk 01:11:52]} {[%emt 00:02:17]} 17. Nxf6+ {[%clk 00:56:46]}
{[%emt 00:08:40]} Nxf6 {[%clk 01:11:39]} {[%emt 00:00:43]} 18. Nf3 {[%clk
00:55:24]} {[%emt 00:01:49]} Nd5 {[%clk 01:10:09]} {[%emt 00:02:02]} 19. c4
{[%clk 00:53:42]} {[%emt 00:02:11]} Nxe3 {[%clk 01:09:27]} {[%emt 00:01:13]} 20.
Qxe3 {[%clk 00:50:58]} {[%emt 00:03:13]} Bf6 {[%clk 01:06:24]} {[%emt
00:03:34]} 21. Rad1 {[%clk 00:48:39]} {[%emt 00:02:48]} Rd7 {[%clk 01:05:26]}
{[%emt 00:01:29]} 22. Rd2 {[%clk 00:46:06]} {[%emt 00:03:03]} Rfd8 {[%clk
01:04:38]} {[%emt 00:01:19]} 23. Red1 {[%clk 00:46:22]} {[%emt 00:00:13]} Qc7
{[%clk 01:01:18]} {[%emt 00:03:50]} 24. Kf1 {[%clk 00:42:43]} {[%emt 00:04:04]}
Rd6 {[%clk 00:57:19]} {[%emt 00:04:34]} 25. Qf4 {[%clk 00:40:28]} {[%emt
00:02:28]} Qe7 {[%clk 00:55:32]} {[%emt 00:02:36]} 26. Qe4 {[%clk 00:34:31]}
{[%emt 00:06:21]} R8d7 {[%clk 00:49:55]} {[%emt 00:06:13]} 27. Ne5 {[%clk
00:32:29]} {[%emt 00:02:29]} Bxe5 {[%clk 00:48:41]} {[%emt 00:01:46]} 28. Qxe5
{[%clk 00:31:57]} {[%emt 00:01:03]} Qd8 {[%clk 00:46:58]} {[%emt 00:02:11]} 29.
f3 {[%clk 00:28:02]} {[%emt 00:04:25]} b6 {[%clk 00:37:49]} {[%emt 00:09:41]}
30. a4 {[%clk 00:23:39]} {[%emt 00:04:52]} Qh4 {[%clk 00:33:13]} {[%emt
00:05:07]} 31. Qg3 {[%clk 00:20:13]} {[%emt 00:03:54]} Qf6 {[%clk 00:32:23]}
{[%emt 00:01:20]} 32. Qf2 {[%clk 00:19:41]} {[%emt 00:01:02]} Qd8 {[%clk
00:30:52]} {[%emt 00:02:03]} 33. Ke1 {[%clk 00:17:42]} {[%emt 00:02:28]} Qg5
{[%clk 00:29:24]} {[%emt 00:01:59]} 34. f4 {[%clk 00:15:11]} {[%emt 00:03:01]}
Qf5 {[%clk 00:27:01]} {[%emt 00:02:53]} 35. Qe3 {[%clk 00:13:44]} {[%emt
00:01:47]} Qa5 {[%clk 00:27:08]} {[%emt 00:00:33]} 36. Kf2 {[%clk 00:12:55]}
{[%emt 00:01:11]} Qh5 {[%clk 00:25:47]} {[%emt 00:01:57]} 37. h3 {[%clk
00:12:26]} {[%emt 00:01:00]} Qh4+ {[%clk 00:26:03]} {[%emt 00:00:14]} 38. Qg3
{[%clk 00:12:14]} {[%emt 00:00:41]} Qd8 {[%clk 00:26:19]} {[%emt 00:00:15]} 39.
Qe3 {[%clk 00:12:17]} {[%emt 00:00:24]} c5 {[%clk 00:26:25]} {[%emt 00:00:27]}
40. d5 {[%clk 00:11:52]} {[%emt 00:00:55]} exd5 {[%clk 00:26:45]} {[%emt
00:00:10]} 41. cxd5 {[%clk 00:11:05]} {[%emt 00:01:18]} Rxd5 {[%clk 00:27:02]}
{[%emt 00:00:13]} 42. Rxd5 {[%clk 00:11:13]} {[%emt 00:00:22]} Rxd5 {[%clk
00:27:25]} {[%emt 00:00:07]} 43. Rxd5 {[%clk 00:11:37]} {[%emt 00:00:05]} Qxd5
{[%clk 00:27:49]} {[%emt 00:00:06]} 44. Qe8+ {[%clk 00:11:44]} {[%emt
00:00:21]} Kh7 {[%clk 00:28:17]} {[%emt 00:00:05]} 45. Qe7 {[%clk 00:11:28]}
{[%emt 00:00:39]} Qxb3 {[%clk 00:26:52]} {[%emt 00:02:01]} 46. Qxa7 {[%clk
00:11:13]} {[%emt 00:00:45]} Qb2+ {[%clk 00:26:49]} {[%emt 00:00:33]} 47. Kg3
{[%clk 00:11:18]} {[%emt 00:00:19]} Qc3+ {[%clk 00:26:53]} {[%emt 00:00:31]} 48.
Kh2 {[%clk 00:11:35]} {[%emt 00:00:12]} Qf6 {[%clk 00:27:11]} {[%emt 00:00:12]}
49. Qc7 {[%clk 00:11:02]} {[%emt 00:01:03]} g6 {[%clk 00:25:35]} {[%emt
00:02:08]} 50. Kg3 {[%clk 00:11:06]} {[%emt 00:00:26]} Kg7 {[%clk 00:25:52]}
{[%emt 00:00:13]} 51. Kf3 {[%clk 00:08:57]} {[%emt 00:02:37]} Qc3+ {[%clk
00:25:48]} {[%emt 00:00:35]} 52. Kf2 {[%clk 00:08:54]} {[%emt 00:00:17]} Qd4+
{[%clk 00:26:00]} {[%emt 00:00:36]} 53. Kf3 {[%clk 00:09:10]} {[%emt 00:00:13]}
c4 {[%clk 00:26:11]} {[%emt 00:00:20]} 54. Qe5+ {[%clk 00:08:41]} {[%emt
00:00:58]} Qxe5 {[%clk 00:26:23]} {[%emt 00:00:19]} 55. fxe5 {[%clk 00:09:07]}
{[%emt 00:00:04]} f6 {[%clk 00:15:54]} {[%emt 00:10:59]} 56. exf6+ {[%clk
00:08:19]} {[%emt 00:01:18]} Kxf6 {[%clk 00:16:12]} {[%emt 00:00:11]} 57. Ke4
{[%clk 00:08:20]} {[%emt 00:00:28]} c3 {[%clk 00:14:38]} {[%emt 00:02:05]} 58.
Kd3 {[%clk 00:07:58]} {[%emt 00:00:51]} c2 {[%clk 00:14:20]} {[%emt 00:00:48]}
59. Kxc2 {[%clk 00:08:23]} {[%emt 00:00:05]} Ke5 {[%clk 00:14:42]} {[%emt
00:00:08]} 60. Kd3 {[%clk 00:07:23]} {[%emt 00:01:28]} Kd5 {[%clk 00:14:42]}
{[%emt 00:00:32]} 61. Kc3 {[%clk 00:07:22]} {[%emt 00:00:30]} Kc5 {[%clk
00:14:59]} {[%emt 00:00:13]} 62. Kb3 {[%clk 00:07:19]} {[%emt 00:00:32]} b5
{[%clk 00:14:41]} {[%emt 00:00:45]} 63. axb5 {[%clk 00:07:25]} {[%emt
00:00:28]} Kxb5 {[%clk 00:15:00]} {[%emt 00:00:11]} 64. Kc3 {[%clk 00:07:47]}
{[%emt 00:00:08]} Kc5 {[%clk 00:15:27]} {[%emt 00:00:03]} 65. Kd3 {[%clk
00:08:11]} {[%emt 00:00:06]} Kd5 {[%clk 00:15:53]} {[%emt 00:00:04]} 66. Ke3
{[%clk 00:08:38]} {[%emt 00:00:03]} Ke5 {[%clk 00:16:19]} {[%emt 00:00:04]} 67.
Kf3 {[%clk 00:08:46]} {[%emt 00:00:20]} h5 {[%clk 00:16:16]} {[%emt 00:00:35]}
68. h4 {[%clk 00:08:00]} {[%emt 00:01:16]} Kf5 {[%clk 00:16:24]} {[%emt
00:00:22]} 69. g3 {[%clk 00:07:59]} {[%emt 00:00:31]} g5 {[%clk 00:16:49]}
{[%emt 00:00:05]} 70. hxg5 {[%clk 00:07:58]} {[%emt 00:00:31]} Kxg5 {[%clk
00:17:12]} {[%emt 00:00:07]} 71. Kg2 {[%clk 00:08:02]} {[%emt 00:00:26]} h4
{[%clk 00:17:37]} {[%emt 00:00:05]} 72. gxh4+ {[%clk 00:08:26]} {[%emt
00:00:06]} Kxh4 {[%clk 00:18:02]} {[%emt 00:00:05]} 1/2-1/2

[Event "Mistrovství Čech mládeže 2023 - HD14"]
[Site "Harrachov, Czech Republic"]
[Date "2023.10.21"]
[Round "1.5"]
[White "Mikulka, Martin Michael"]
[Black "Nguyen, Nhat Minh Thu"]
[Result "1-0"]
[TimeControl "90m + 30s"]
[WhiteElo "1826"]
[BlackElo "1238"]

1. e4 {[%clk 01:30:27]} {[%emt 00:00:01]} e5 {[%clk 01:30:51]} {[%emt
00:00:10]} 2. Nf3 {[%clk 01:31:22]} {[%emt 00:00:05]} Nc6 {[%clk 01:30:55]}
{[%emt 00:00:26]} 3. Bb5 {[%clk 01:31:35]} {[%emt 00:00:16]} Bc5 {[%clk
01:28:41]} {[%emt 00:02:44]} 4. O-O {[%clk 01:31:38]} {[%emt 00:00:27]} d6
{[%clk 01:28:54]} {[%emt 00:00:17]} 5. c3 {[%clk 01:31:47]} {[%emt 00:00:21]}
a6 {[%clk 01:28:34]} {[%emt 00:00:51]} 6. Ba4 {[%clk 01:31:48]} {[%emt
00:00:29]} Bg4 {[%clk 01:28:15]} {[%emt 00:00:49]} 7. h3 {[%clk 01:31:27]}
{[%emt 00:00:51]} Bh5 {[%clk 01:28:16]} {[%emt 00:00:29]} 8. Re1 {[%clk
01:31:08]} {[%emt 00:00:48]} Nf6 {[%clk 01:26:51]} {[%emt 00:01:56]} 9. d3
{[%clk 01:31:09]} {[%emt 00:00:29]} h6 {[%clk 01:24:33]} {[%emt 00:02:48]} 10.
Nbd2 {[%clk 01:30:27]} {[%emt 00:01:12]} O-O {[%clk 01:24:25]} {[%emt
00:00:38]} 11. Nf1 {[%clk 01:30:38]} {[%emt 00:00:19]} b5 {[%clk 01:20:17]}
{[%emt 00:04:39]} 12. Bb3 {[%clk 01:30:51]} {[%emt 00:00:17]} Bg6 {[%clk
01:19:11]} {[%emt 00:01:36]} 13. Ng3 {[%clk 01:30:11]} {[%emt 00:01:09]} Nh5
{[%clk 01:11:38]} {[%emt 00:08:04]} 14. Nxh5 {[%clk 01:11:19]} {[%emt
00:19:21]} Bxh5 {[%clk 01:11:59]} {[%emt 00:00:09]} 15. g4 {[%clk 01:09:51]}
{[%emt 00:01:58]} Bg6 {[%clk 01:12:16]} {[%emt 00:00:13]} 16. Bd5 {[%clk
01:09:52]} {[%emt 00:00:29]} Qd7 {[%clk 01:11:58]} {[%emt 00:00:48]} 17. Nh4
{[%clk 01:08:57]} {[%emt 00:01:24]} Bh7 {[%clk 01:12:13]} {[%emt 00:00:16]} 18.
Nf5 {[%clk 01:08:22]} {[%emt 00:01:05]} Rfe8 {[%clk 01:09:18]} {[%emt
00:03:24]} 19. Qf3 {[%clk 00:55:04]} {[%emt 00:13:48]} Rac8 {[%clk 01:02:31]}
{[%emt 00:07:18]} 20. Bxc6 {[%clk 00:50:30]} {[%emt 00:05:04]} Qxc6 {[%clk
01:02:24]} {[%emt 00:00:37]} 21. Kh1 {[%clk 00:35:01]} {[%emt 00:15:59]} Qd7
{[%clk 00:56:00]} {[%emt 00:06:53]} 22. g5 {[%clk 00:30:54]} {[%emt 00:04:36]}
h5 {[%clk 00:49:23]} {[%emt 00:07:08]} 23. Be3 {[%clk 00:27:28]} {[%emt
00:03:56]} Bxe3 {[%clk 00:43:38]} {[%emt 00:06:14]} 24. fxe3 {[%clk 00:27:21]}
{[%emt 00:00:37]} d5 {[%clk 00:42:21]} {[%emt 00:01:47]} 25. Qxh5 {[%clk
00:24:19]} {[%emt 00:03:32]} dxe4 {[%clk 00:40:39]} {[%emt 00:02:13]} 26. dxe4
{[%clk 00:24:05]} {[%emt 00:00:44]} Bxf5 {[%clk 00:40:59]} {[%emt 00:00:10]} 27.
exf5 {[%clk 00:24:29]} {[%emt 00:00:06]} Qxf5 {[%clk 00:40:56]} {[%emt
00:00:33]} 28. Rf1 {[%clk 00:23:33]} {[%emt 00:01:26]} Qe6 {[%clk 00:36:54]}
{[%emt 00:04:32]} 29. Rf2 {[%clk 00:20:58]} {[%emt 00:03:04]} Rf8 {[%clk
00:34:32]} {[%emt 00:02:52]} 30. a3 {[%clk 00:18:08]} {[%emt 00:03:21]} Rcd8
{[%clk 00:33:55]} {[%emt 00:01:07]} 31. Raf1 {[%clk 00:18:25]} {[%emt
00:00:12]} c5 {[%clk 00:26:08]} {[%emt 00:08:17]} 32. Kg1 {[%clk 00:17:13]}
{[%emt 00:01:42]} Rd3 {[%clk 00:25:29]} {[%emt 00:01:10]} 33. g6 {[%clk
00:16:09]} {[%emt 00:01:35]} Qxg6+ {[%clk 00:13:49]} {[%emt 00:12:10]} 34. Qxg6
{[%clk 00:16:33]} {[%emt 00:00:05]} fxg6 {[%clk 00:14:12]} {[%emt 00:00:07]} 35.
Rxf8+ {[%clk 00:17:00]} {[%emt 00:00:03]} Kh7 {[%clk 00:14:34]} {[%emt
00:00:08]} 36. Re8 {[%clk 00:16:23]} {[%emt 00:01:06]} Rxe3 {[%clk 00:14:39]}
{[%emt 00:00:25]} 37. Kf2 {[%clk 00:16:38]} {[%emt 00:00:14]} Rxh3 {[%clk
00:13:42]} {[%emt 00:01:28]} 38. Kg2 {[%clk 00:16:59]} {[%emt 00:00:09]} Rh5
{[%clk 00:14:02]} {[%emt 00:00:09]} 39. Rh1 {[%clk 00:17:24]} {[%emt 00:00:05]}
Kh6 {[%clk 00:13:42]} {[%emt 00:00:51]} 40. Rxe5 {[%clk 00:17:41]} {[%emt
00:00:13]} c4 {[%clk 00:13:49]} {[%emt 00:00:23]} 41. Rhxh5+ {[%clk 00:18:02]}
{[%emt 00:00:09]} gxh5 {[%clk 00:14:10]} {[%emt 00:00:10]} 42. Re6+ {[%clk
00:18:23]} {[%emt 00:00:09]} Kg5 {[%clk 00:13:26]} {[%emt 00:01:13]} 43. Rxa6
{[%clk 00:18:39]} {[%emt 00:00:14]} Kg4 {[%clk 00:13:43]} {[%emt 00:00:13]} 44.
Rg6+ {[%clk 00:19:02]} {[%emt 00:00:07]} 1-0